bitfinex/quotes_ETHUSD_20220215
["timestamp","ask_amount","ask_price","bid_price","bid_amount"]
[1644944559838,0.802938,3114.0,3113.9,0.38578946]
[1644944560340,0.802938,3114.0,3113.9,3.58578946]
[1644944560977,19.522938,3114.0,3113.9,3.58578946]
[1644944561372,20.522938,3114.0,3113.9,3.58578946]
[1644944561575,1.802938,3114.0,3113.9,0.38578946]
[1644944562272,0.802938,3114.0,3113.9,0.38578946]
[1644944562572,1.802938,3114.0,3113.9,0.38578946]
[1644944563172,0.802938,3114.0,3113.9,0.38578946]
[1644944563372,1.802938,3114.0,3113.9,0.38578946]
[1644944563672,0.802938,3114.0,3113.9,0.38578946]
[1644944563872,1.802938,3114.0,3113.9,0.38578946]
[1644944564073,0.802938,3114.0,3113.9,0.38578946]
[1644944564274,1.802938,3114.0,3113.9,0.38578946]
[1644944564476,0.802938,3114.0,3113.9,0.38578946]
[1644944564725,20.522938,3114.0,3113.9,0.38578946]
[1644944564928,2.605828,3114.0,3113.9,0.38578946]
[1644944565934,1.802938,3114.0,3113.9,0.38578946]
[1644944566132,0.802938,3114.0,3113.9,0.38578946]
[1644944567227,1.605828,3114.0,3113.9,0.38578946]
[1644944570977,0.802938,3114.0,3113.9,0.38578946]
[1644944571373,0.802938,3114.0,3113.9,0.99514606]
[1644944571577,0.80535628,3114.1,3113.9,0.99514606]
[1644944571774,0.462,3114.1,3113.9,0.6093566]
[1644944572227,0.462,3114.1,3113.9,2.5093566]
[1644944572628,1.2648253,3114.1,3113.9,2.5093566]
[1644944574031,1.2648253,3114.1,3113.9,1.9]
[1644944574932,1.2648253,3114.1,3114.0,0.38159685]
[1644944575132,1.2648253,3114.1,3114.0,0.38593395]
[1644944577575,2.0676953,3114.1,3114.0,0.38593395]
[1644944578177,20.7876953,3114.1,3114.0,0.38593395]
[1644944578379,21.7876953,3114.1,3114.0,0.38593395]
[1644944578577,3.0676953,3114.1,3114.0,0.38593395]
[1644944578776,2.0676953,3114.1,3114.0,0.38593395]
[1644944578976,3.0676953,3114.1,3114.0,0.38593395]
[1644944579929,2.0676953,3114.1,3114.0,0.38593395]
[1644944580131,3.0676953,3114.1,3114.0,0.38593395]
[1644944580732,2.0676953,3114.1,3114.0,0.38593395]
[1644944580936,2.2648253,3114.1,3114.0,0.38593395]
[1644944581133,1.2648253,3114.1,3114.0,0.38593395]
[1644944581332,2.2648253,3114.1,3114.0,0.38593395]
[1644944581731,20.9848253,3114.1,3114.0,0.38593395]
[1644944581931,2.2648253,3114.1,3114.0,0.38593395]
[1644944582332,20.7877053,3114.1,3114.0,0.38593395]
[1644944582532,2.0677053,3114.1,3114.0,0.38593395]
[1644944582934,20.7877053,3114.1,3114.0,0.38593395]
[1644944583375,21.7877053,3114.1,3114.0,0.38593395]
[1644944584072,22.72898864,3114.1,3114.0,0.38593395]
[1644944584675,4.00898864,3114.1,3114.0,0.38593395]
[1644944585474,22.72898864,3114.1,3114.0,0.99529055]
[1644944585675,4.00898864,3114.1,3114.0,0.99529055]
[1644944585877,2.0677053,3114.1,3114.0,0.99529055]
[1644944586081,1.2648253,3114.1,3114.0,0.99529055]
[1644944587329,1.2648253,3114.1,3114.0,0.38593395]
[1644944587729,20.89447233,3114.1,3114.0,0.38593395]
[1644944588228,21.89447233,3114.1,3114.0,0.38593395]
[1644944588431,22.99735233,3114.1,3114.0,0.38593395]
[1644944588734,18.72,3113.7,3113.5,0.0024059]
[1644944588932,19.182,3113.6,3113.2,5.7783566]
[1644944589134,19.98511,3113.6,3113.3,0.6093566]
[1644944589430,19.72,3113.5,3113.3,0.6093566]
[1644944589630,1.33431289,3113.4,3113.3,0.6093566]
[1644944590532,1.33431289,3113.4,3113.2,0.61176258]
[1644944590533,1.2650955,3113.4,3113.2,0.61176258]
[1644944590731,0.80309,3113.3,3113.2,0.61176258]
[1644944590981,1.26509,3113.3,3113.2,0.61176258]
[1644944591382,1.26509,3113.3,3113.2,0.6093566]
[1644944591575,0.60806164,3113.3,3113.1,0.6093566]
[1644944591773,0.60806164,3113.3,3113.1,0.61176443]
[1644944592175,0.462,3113.3,3113.1,0.61176443]
[1644944592376,0.462,3113.3,3113.1,0.00240783]
[1644944592576,0.462,3113.3,3113.0,5.98605759]
[1644944592773,0.462,3113.3,3113.2,0.61402837]
[1644944592974,1.26514,3113.3,3113.0,5.98846545]
[1644944593176,0.80311,3113.2,3113.0,5.98846545]
[1644944593373,0.462,3113.3,3113.0,5.98846545]
[1644944593574,0.462,3113.3,3113.2,0.61410284]
[1644944594631,1.2650575,3113.3,3113.2,0.61410284]
[1644944594829,0.462,3113.3,3113.0,5.98846548]
[1644944595028,0.462,3113.3,3113.0,5.98605759]
[1644944595230,0.462,3113.3,3113.1,0.00240593]
[1644944596031,0.462,3113.3,3113.2,0.61382138]
[1644944596230,0.462,3113.3,3113.0,5.98605759]
[1644944596433,0.462,3113.3,3113.0,5.98846354]
[1644944596635,1.2650377,3113.3,3113.0,5.98846354]
[1644944597332,1.2650377,3113.3,3113.0,5.98605759]
[1644944597733,1.2650377,3113.3,3113.0,5.98846357]
[1644944598132,0.462,3113.3,3113.0,5.98846357]
[1644944598377,0.462,3113.3,3113.0,6.79147357]
[1644944598678,0.462,3113.3,3113.1,0.61372091]
[1644944599282,1.265035,3113.3,3113.1,0.61372091]
[1644944599681,1.265035,3113.3,3113.0,0.61612702]
[1644944599880,2.265035,3113.3,3113.0,0.61372091]
[1644944600085,2.265035,3113.3,3113.0,0.61612699]
[1644944600479,3.068115,3113.3,3113.0,0.61612699]
[1644944600678,3.068115,3113.3,3113.1,0.61372091]
[1644944601479,2.068115,3113.3,3113.1,0.61372091]
[1644944602131,2.068115,3113.3,3113.0,0.61612699]
[1644944602334,1.265035,3113.3,3113.0,0.61372091]
[1644944602539,1.265035,3113.3,3113.0,0.61612699]
[1644944602934,1.265035,3113.3,3113.1,0.61372091]
[1644944603335,1.265035,3113.3,3113.0,0.61612699]
[1644944603535,1.265035,3113.3,3113.0,0.61372091]
[1644944603737,1.265035,3113.3,3113.0,0.61612699]
[1644944603939,1.265035,3113.3,3113.1,0.0042947]
[1644944604340,19.985035,3113.3,3113.0,0.00240608]
[1644944604545,19.985035,3113.3,3113.1,0.0042947]
[1644944604742,1.265035,3113.3,3113.1,0.0042947]
[1644944604940,2.068115,3113.3,3113.1,0.0042947]
[1644944605139,2.068115,3113.3,3112.9,0.61372091]
[1644944605340,2.0681292,3113.3,3112.9,0.61372091]
[1644944605540,1.2650492,3113.3,3112.9,0.61372091]
[1644944605744,1.2650492,3113.3,3113.0,0.61372091]
[1644944606378,0.462,3113.3,3113.0,0.61372091]
[1644944607282,0.462,3113.3,3113.0,0.61612702]
[1644944607679,1.265071,3113.3,3113.0,1.41913702]
[1644944607878,1.265071,3113.3,3113.0,0.61612702]
[1644944608280,0.462,3113.3,3113.0,0.61372091]
[1644944608581,0.462,3113.3,3113.0,0.61612702]
[1644944608778,1.2650479,3113.3,3113.0,0.61612702]
[1644944609180,2.0681279,3113.3,3113.0,0.61612702]
[1644944609380,1.2650479,3113.3,3113.1,0.37593578]
[1644944609627,1.2650479,3113.3,3113.2,0.37593578]
[1644944609831,0.462,3113.3,3113.0,1.79266669]
[1644944610028,0.462,3113.3,3113.1,0.37593578]
[1644944610228,0.462,3113.3,3113.2,0.37593578]
[1644944610427,0.462,3113.3,3113.1,0.61526365]
[1644944610629,0.462,3113.3,3113.1,0.99119943]
[1644944610829,0.462,3113.3,3113.2,0.37593578]
[1644944611730,0.8030152,3113.3,3113.2,0.37593578]
[1644944612129,0.8030152,3113.3,3113.0,0.49119943]
[1644944612333,0.8030152,3113.3,3112.7,2.00145759]
[1644944612530,1.6061415,3113.5,3112.6,1.74620411]
[1644944612730,19.32805243,3113.5,3112.9,0.80303]
[1644944612930,0.8030158,3113.3,3112.6,1.74620411]
[1644944613130,0.80304,3113.4,3112.6,0.81705759]
[1644944613381,0.80304,3113.4,3113.0,0.00263913]
[1644944613581,1.6061415,3113.5,3113.0,0.00263913]
[1644944613782,23.25206805,3113.7,3113.0,0.80564913]
[1644944613985,0.80302,3113.5,3113.0,0.80564913]
[1644944614184,0.80302,3113.5,3112.8,0.80302]
[1644944614382,0.80302,3113.5,3112.6,1.7330202]
[1644944614587,1.26502,3113.5,3113.2,0.00263904]
[1644944614991,0.80309,3113.4,3113.2,0.00263904]
[1644944615290,0.8030184,3113.4,3113.2,0.00263904]
[1644944615485,0.8030184,3113.4,3112.6,0.91596261]
[1644944615686,0.8030184,3113.4,3113.1,0.00263907]
[1644944616286,19.65293151,3113.2,3113.1,0.00263907]
[1644944616489,20.11493151,3113.2,3113.1,0.00263907]
[1644944616788,18.72,3113.1,3112.0,9.48605759]
[1644944616988,20.182,3113.1,3113.0,0.00263916]
[1644944617432,20.98541,3113.1,3113.0,0.00263916]
[1644944617636,23.8141744,3113.1,3113.0,0.00263916]
[1644944617835,23.8141744,3113.1,3112.0,3.5]
[1644944618033,23.0107644,3113.1,3112.9,0.00179701]
[1644944618236,0.13819997,3113.0,3112.9,0.00179701]
[1644944618433,19.32019997,3113.0,3112.9,0.00179701]
[1644944618835,21.42359997,3113.0,3112.9,0.00179701]
[1644944619035,21.42359997,3113.0,3111.7,0.81705759]
[1644944619236,1.08996556,3112.3,3111.7,0.81705759]
[1644944619537,1.08996556,3112.3,3111.8,0.81705759]
[1644944619736,1.08996556,3112.3,3111.8,0.66705759]
[1644944619939,1.89332556,3112.3,3111.8,0.66705759]
[1644944620338,1.89332556,3112.3,3112.1,0.00268328]
[1644944620885,18.72,3112.2,3112.1,0.00268328]
[1644944621085,2.69670156,3112.3,3112.1,0.00268328]
[1644944621485,1.89334156,3112.3,3112.1,0.00268328]
[1644944622085,1.89334156,3112.3,3112.1,0.61509771]
[1644944622285,1.89334156,3112.3,3112.1,0.61935083]
[1644944622487,0.803376,3112.3,3112.1,0.61935083]
[1644944622885,0.462,3112.4,3112.1,0.61935083]
[1644944623085,1.26534,3112.4,3112.2,0.00425312]
[1644944623884,1.07738348,3112.3,3112.2,0.00425312]
[1644944625240,1.07738348,3112.3,3112.1,0.61773434]
[1644944625436,2.0686382,3112.4,3112.1,0.62198746]
[1644944625638,0.25,3113.1,3112.3,0.61241443]
[1644944625840,0.47613462,3113.3,3112.6,0.61241443]
[1644944626037,0.462,3113.7,3112.7,0.00425312]
[1644944626038,1.1592,3113.7,3112.7,0.00425312]
[1644944626437,0.98402192,3113.4,3112.7,1.5945117]
[1644944626638,0.98402192,3113.4,3112.8,0.80565623]
[1644944626838,1.78701902,3113.4,3112.9,0.803]
[1644944627039,1.856006,3113.9,3113.0,0.00425312]
[1644944627239,11.9161,3114.2,3113.0,0.00425312]
[1644944627639,11.9161,3114.2,3113.0,0.61666755]
[1644944627842,11.9161,3114.2,3113.3,0.00263594]
[1644944628039,1.15822654,3113.6,3113.3,0.00263594]
[1644944628682,1.15822654,3113.6,3113.1,0.00425312]
[1644944628983,1.15822654,3113.6,3113.3,0.00263594]
[1644944629889,1.15822654,3113.6,3113.1,0.00425312]
[1644944630083,1.15822654,3113.6,3113.3,0.00263594]
[1644944630885,2.76424014,3113.6,3113.3,0.00263594]
[1644944631086,2.76424014,3113.6,3113.1,0.00425312]
[1644944631286,2.76424014,3113.6,3113.3,0.00263594]
[1644944631486,3.56730014,3113.6,3113.3,0.00263594]
[1644944631786,2.1071849,3113.6,3113.3,0.00263594]
[1644944632231,2.1071849,3113.6,3113.2,0.26011839]
[1644944632634,2.1070785,3113.6,3113.3,0.00263594]
[1644944632835,2.4092884,3113.5,3113.3,0.00263594]
[1644944633037,2.4092884,3113.5,3113.3,0.26275433]
[1644944633234,20.3261984,3113.5,3113.4,0.26011839]
[1644944633434,1.6061984,3113.5,3113.4,0.26011839]
[1644944633633,2.69849778,3113.5,3113.1,0.26011839]
[1644944633835,0.8030931,3113.4,3113.2,0.26275436]
[1644944634033,1.6062031,3113.4,3113.3,0.26011839]
[1644944634233,1.6062031,3113.4,3113.2,0.00263597]
[1644944634734,1.6062031,3113.4,3113.1,0.26012335]
[1644944634937,1.89542771,3113.3,3113.2,0.26012335]
[1644944635136,2.35742771,3113.3,3113.2,0.26012335]
[1644944635434,18.45987665,3113.2,3113.1,0.00263603]
[1644944635638,18.92187665,3113.2,3113.1,0.00263603]
[1644944635881,18.45987665,3113.0,3112.6,0.00425312]
[1644944636079,0.462,3112.9,3112.6,0.00425312]
[1644944636281,0.462,3112.9,3112.5,0.01054604]
[1644944636583,19.63242693,3112.6,3112.5,0.01054604]
[1644944636781,22.21032693,3112.6,3112.5,0.01054604]
[1644944637180,18.72,3112.4,3112.0,0.61241443]
[1644944637379,0.80344,3112.5,3112.2,0.00425312]
[1644944637679,19.98544,3112.5,3112.2,0.00425312]
[1644944637878,1.26544,3112.5,3112.2,0.00425312]
[1644944638079,1.06793654,3112.1,3111.6,3.5]
[1644944638285,2.068873,3112.5,3111.6,3.5]
[1644944638286,1.265433,3112.5,3111.6,0.80332]
[1644944638482,1.265433,3112.5,3111.7,0.80332]
[1644944639282,1.14835369,3112.2,3111.7,0.80332]
[1644944639739,0.8033157,3112.3,3111.7,4.16343904]
[1644944640043,0.462,3112.9,3112.0,0.8032]
[1644944640247,3.6186,3113.2,3112.1,0.3]
[1644944640442,0.8032448,3112.9,3112.1,0.3]
[1644944640643,3.6186,3113.2,3112.5,0.0031878]
[1644944640848,0.90957316,3113.0,3112.5,0.0031878]
[1644944641044,0.90957316,3113.0,3112.5,0.00582056]
[1644944641245,0.90957316,3113.0,3112.5,0.80895056]
[1644944641843,0.90957316,3113.0,3112.5,0.8063178]
[1644944642245,0.90957316,3113.0,3112.6,0.0026327]
[1644944643144,0.90957316,3113.0,3112.5,0.8063178]
[1644944643387,0.90957316,3113.0,3112.6,0.00263267]
[1644944643982,0.8031209,3113.1,3112.6,0.00263267]
[1644944644288,1.2117,3113.6,3112.7,2.40906]
[1644944644585,1.2117,3113.6,3113.0,0.80292]
[1644944644984,19.72,3113.8,3113.0,0.80292]
[1644944644985,1.13065646,3113.3,3113.0,0.80292]
[1644944645387,1.13065646,3113.3,3112.7,1.6098421]
[1644944645585,4.37455242,3113.3,3112.7,0.0038021]
[1644944645783,4.37455242,3113.3,3113.0,0.00263247]
[1644944645987,1.13065646,3113.3,3113.0,0.00263247]
[1644944646187,1.13065646,3113.3,3112.5,0.81367147]
[1644944646188,5.01222982,3113.1,3112.5,0.01053147]
[1644944646384,4.7653935,3113.0,3111.2,1.22142012]
[1644944646583,19.52348,3112.9,3111.1,1.22142012]
[1644944646783,19.52348,3112.9,3110.8,4.56431052]
[1644944646784,18.72,3112.7,3110.9,1.22142012]
[1644944646983,18.72,3112.5,3110.9,1.22142012]
[1644944647235,18.72,3112.3,3111.1,0.8180047]
[1644944647440,20.36882308,3111.4,3111.1,0.8180047]
[1644944647638,18.72,3111.2,3110.9,0.8180047]
[1644944647835,18.72,3111.2,3110.3,4.47721714]
[1644944647836,18.72,3111.2,3110.7,0.8180047]
[1644944648035,18.72,3111.2,3110.3,2.85280662]
[1644944648036,18.72,3111.0,3110.9,0.61361318]
[1644944648234,19.182,3111.0,3110.7,0.61361318]
[1644944648434,19.182,3111.0,3110.6,0.61361318]
[1644944648836,19.9858468,3111.0,3110.6,0.61361318]
[1644944649034,1.2658468,3111.0,3110.6,0.61361318]
[1644944649533,1.2658468,3111.0,3110.6,0.616247]
[1644944650339,1.2658468,3111.0,3110.7,0.61361318]
[1644944650738,0.462,3111.0,3110.9,0.61361318]
[1644944650993,0.462,3111.0,3110.8,0.61361318]
[1644944651294,3.7774,3111.7,3110.7,0.61361318]
[1644944651491,0.462,3111.7,3111.0,0.80344]
[1644944651891,3.2484375,3112.1,3111.1,0.8034]
[1644944652088,1.13705658,3111.8,3111.2,0.98184751]
[1644944652288,1.13705658,3111.8,3111.1,0.8034]
[1644944652588,1.13705658,3111.8,3111.0,3.25]
[1644944652789,18.72,3111.7,3111.0,3.25]
[1644944652990,18.72,3111.7,3111.3,0.00263345]
[1644944653395,1.13705658,3111.8,3111.3,0.00263345]
[1644944653590,0.80358,3111.7,3111.3,0.00263345]
[1644944653796,0.8035021,3111.6,3111.3,0.00263345]
[1644944653996,0.8035021,3111.6,3110.9,0.00421167]
[1644944654194,0.8035021,3111.6,3111.3,0.00263342]
[1644944655035,1.13705658,3111.8,3111.3,0.00263342]
[1644944655036,1.94052348,3111.8,3111.3,0.00263342]
[1644944655232,1.94052348,3111.8,3111.1,0.00421167]
[1644944655532,1.13705658,3111.8,3111.3,0.00263345]
[1644944655832,1.13705658,3111.8,3111.3,0.00684512]
[1644944656032,1.13705658,3111.8,3111.4,0.18815992]
[1644944656338,1.13705658,3111.8,3111.5,0.00421167]
[1644944656532,1.94056078,3111.8,3111.6,0.18815992]
[1644944656935,1.94056078,3111.8,3111.7,0.18815992]
[1644944657133,1.94056078,3111.8,3111.7,0.19237159]
[1644944657335,0.462,3111.9,3111.7,0.19237159]
[1644944657536,0.462,3111.9,3111.7,0.00421167]
[1644944657734,0.462,3111.9,3111.2,0.00421167]
[1644944657934,19.182,3111.9,3111.6,0.00262964]
[1644944658134,0.462,3111.9,3111.6,0.00262964]
[1644944658890,1.00545045,3111.7,3111.2,0.00421167]
[1644944659084,1.00545045,3111.7,3111.6,0.00262964]
[1644944659986,1.00545045,3111.7,3111.2,0.00421167]
[1644944660186,1.00545045,3111.7,3111.5,0.00262969]
[1644944660484,3.2959,3112.2,3111.6,0.00329303]
[1644944660885,0.72704646,3112.3,3111.6,0.0075047]
[1644944661490,0.72704646,3112.3,3111.7,0.00244652]
[1644944662137,1.0533273,3112.5,3111.7,0.00244652]
[1644944662340,3.34469997,3112.7,3111.6,0.00329303]
[1644944662639,0.13819997,3112.7,3111.8,0.80568646]
[1644944662839,0.13819997,3112.7,3111.9,0.00421167]
[1644944663238,0.13819997,3112.7,3111.9,0.80745167]
[1644944663436,0.13819997,3112.7,3111.9,0.80324]
[1644944663637,0.85894379,3112.3,3112.0,0.00421167]
[1644944664739,0.85894379,3112.3,3112.0,0.80742167]
[1644944664939,0.85894379,3112.3,3112.1,0.00421167]
[1644944665538,0.13819997,3112.7,3112.1,0.00421167]
[1644944666383,1.2652005,3113.0,3112.2,0.00258169]
[1644944667083,0.99806,3112.6,3112.2,0.00258169]
[1644944667283,0.99806,3112.6,3112.1,0.80738167]
[1644944667484,0.99806,3112.6,3112.3,0.00258165]
[1644944668585,0.99806,3112.6,3111.9,0.00750427]
[1644944668785,0.99806,3112.6,3112.3,0.00258166]
[1644944669636,0.99806,3112.6,3112.0,0.80318]
[1644944669835,0.99806,3112.6,3112.3,0.00244903]
[1644944670637,0.99806,3112.6,3112.3,0.00597972]
[1644944670638,20.78881,3112.5,3112.3,0.00597972]
[1644944670843,19.72,3112.4,3112.3,0.00353069]
[1644944671036,23.682,3112.4,3112.3,0.00353069]
[1644944671236,20.182,3112.4,3112.3,0.00597972]
[1644944671838,0.00433293,3111.8,3111.6,0.00979841]
[1644944672034,0.00433293,3111.8,3110.9,0.00421167]
[1644944672035,19.98559,3111.7,3110.9,0.00421167]
[1644944672233,1.26559,3111.7,3110.9,0.00421167]
[1644944672434,1.26559,3111.7,3110.7,0.00421167]
[1644944672636,0.85489777,3111.4,3110.8,1.17484017]
[1644944672935,1.26553,3111.7,3110.9,0.00421167]
[1644944673584,1.26553,3111.7,3111.1,0.00223268]
[1644944673884,2.0690439,3111.7,3111.1,0.00223268]
[1644944674083,1.15161282,3111.6,3111.1,0.00223268]
[1644944674282,1.61361282,3111.6,3111.1,0.00223268]
[1644944674487,1.61361282,3111.6,3110.9,0.00421167]
[1644944674685,2.41718282,3111.6,3111.2,0.00223265]
[1644944675090,2.41714332,3111.6,3111.2,0.00223265]
[1644944675487,1.61361282,3111.6,3111.2,0.00223265]
[1644944675687,0.462,3111.6,3110.9,0.61782485]
[1644944675887,0.462,3111.6,3111.2,0.00223263]
[1644944676087,0.00433293,3111.8,3111.2,0.80563263]
[1644944676288,0.00433293,3111.8,3111.3,0.00421167]
[1644944676487,0.00433293,3111.8,3111.2,0.00223263]
[1644944676688,0.00433293,3111.8,3111.2,0.3064443]
[1644944676891,0.00433293,3111.8,3111.5,0.97401908]
[1644944677141,0.00433293,3111.8,3111.6,0.00421167]
[1644944677437,0.00433293,3111.8,3111.7,0.18695362]
[1644944677638,0.00433293,3111.8,3111.7,0.00421167]
[1644944677840,0.00433293,3111.8,3111.6,0.18695362]
[1644944678040,0.00433293,3111.8,3111.7,0.18695362]
[1644944678238,0.00433293,3111.8,3111.7,0.19116529]
[1644944678845,0.00433293,3111.8,3111.7,1.22366234]
[1644944679748,0.00433293,3111.8,3111.7,1.41259685]
[1644944680984,0.00433293,3111.8,3111.7,2.02420133]
[1644944681182,1.17584351,3112.8,3111.7,1.22366234]
[1644944681183,1.11917644,3112.8,3111.7,1.22366234]
[1644944681386,1.11917644,3112.8,3111.9,0.80326]
[1644944681387,0.92584351,3112.8,3111.9,0.80326]
[1644944681588,0.92584351,3112.8,3112.0,0.18695362]
[1644944681786,3.42452606,3112.9,3112.0,0.18695362]
[1644944681787,1.13870585,3112.3,3112.0,0.18695362]
[1644944681987,1.13870585,3112.3,3112.1,0.00224109]
[1644944682787,1.13870585,3112.3,3112.0,0.18695362]
[1644944684188,1.13870585,3112.3,3112.1,0.18695362]
[1644944684388,1.13870585,3112.3,3112.2,0.18695362]
[1644944684632,1.13870585,3112.3,3112.0,0.00224116]
[1644944685233,1.13870585,3112.3,3111.9,0.18695362]
[1644944685435,1.13870585,3112.3,3112.1,0.00295225]
[1644944685833,1.13870585,3112.3,3112.1,0.18990587]
[1644944686634,1.13870585,3112.3,3112.2,0.18695362]
[1644944686834,1.13870585,3112.3,3112.1,0.00295225]
[1644944687036,1.13870585,3112.3,3112.1,0.18990587]
[1644944687936,1.13870585,3112.3,3112.2,0.18695362]
[1644944688385,1.13870585,3112.3,3112.1,0.18990587]
[1644944688582,1.13870585,3112.3,3112.2,0.18695362]
[1644944688982,1.13870585,3112.3,3112.1,0.00295225]
[1644944689987,1.13870585,3112.3,3112.1,0.18990587]
[1644944690482,1.13870585,3112.3,3112.2,0.18695362]
[1644944691184,1.13870585,3112.3,3112.1,0.18695362]
[1644944691385,0.80327,3112.7,3112.2,0.18695362]
[1644944691583,0.80327,3112.7,3112.3,0.18695362]
[1644944691584,1.16487817,3112.6,3112.3,0.18695362]
[1644944691782,1.16487817,3112.6,3112.1,0.0022473]
[1644944691783,1.28582108,3112.6,3112.4,0.18695362]
[1644944691988,1.28582108,3112.6,3112.5,0.18695362]
[1644944692233,2.45669539,3112.6,3112.5,0.18695362]
[1644944692634,3.38868879,3112.6,3112.5,0.18695362]
[1644944692843,0.93192086,3112.6,3112.5,0.18695362]
[1644944693534,2.10343949,3112.6,3112.5,0.18695362]
[1644944694339,24.77314045,3112.6,3112.5,0.18695362]
[1644944694538,25.77314045,3112.6,3112.5,0.18695362]
[1644944695041,2.56543949,3112.6,3112.5,0.18695362]
[1644944696582,2.10343949,3112.6,3112.5,0.18695362]
[1644944696782,0.93192086,3112.6,3112.5,0.18695362]
[1644944698884,2.1063749,3112.6,3112.5,0.18695362]
[1644944699285,5.74627946,3112.6,3112.5,0.18695362]
[1644944699485,5.75066656,3112.6,3112.5,0.18695362]
[1644944699739,2.5683749,3112.6,3112.5,0.18695362]
[1644944700039,5.80659102,3112.6,3112.5,0.18695362]
[1644944700243,2.5683749,3112.6,3112.5,0.18695362]
[1644944702340,21.2883749,3112.6,3112.5,0.18695362]
[1644944702541,2.5683749,3112.6,3112.5,0.18695362]
[1644944702745,1.17445404,3112.6,3112.5,0.18695362]
[1644944703045,3.0371,3113.0,3112.5,0.18695362]
[1644944703247,1.17572489,3112.9,3112.6,0.18695362]
[1644944703494,2.3417,3113.9,3112.7,0.61160448]
[1644944703695,0.0025225,3113.6,3113.3,1.02020349]
[1644944703892,0.0025225,3113.6,3113.4,0.18695362]
[1644944704095,0.0025225,3113.6,3113.5,0.18695362]
[1644944704492,1.17603171,3113.8,3113.5,0.18695362]
[1644944704691,0.00252267,3113.7,3113.5,0.98982362]
[1644944704895,0.00252267,3113.7,3113.6,0.18695362]
[1644944705094,1.17855438,3113.7,3113.6,0.18695362]
[1644944705593,0.00252267,3113.7,3113.6,0.18695362]
[1644944705795,1.17603171,3114.0,3113.6,0.18695362]
[1644944705991,1.17603171,3114.0,3113.3,1.82314349]
[1644944705992,0.00238211,3113.8,3113.3,1.82314349]
[1644944706193,0.00238211,3113.8,3113.4,0.17740741]
[1644944706393,1.17841382,3113.8,3113.4,0.17740741]
[1644944706591,1.17603171,3113.7,3113.4,0.17740741]
[1644944706791,1.17603171,3113.7,3113.5,0.17740741]
[1644944706995,20.82372395,3114.1,3113.6,0.17740741]
[1644944706996,1.90670835,3114.1,3113.6,0.17740741]
[1644944707240,0.00238213,3113.8,3113.4,0.17740741]
[1644944707434,0.00238213,3113.8,3113.5,0.47737525]
[1644944707635,0.00238213,3113.8,3113.6,0.17737525]
[1644944708034,1.1743587,3114.0,3113.6,0.17737525]
[1644944708437,0.00220674,3113.9,3113.6,0.17737525]
[1644944709034,0.00220674,3113.9,3113.3,1.46968267]
[1644944709234,1.1743587,3114.1,3113.4,0.16552178]
[1644944709634,0.00221618,3113.9,3113.4,0.16552178]
[1644944709835,1.12241306,3113.8,3113.4,0.16552178]
[1644944710235,1.1743587,3113.7,3113.4,0.16552178]
[1644944710639,1.1743587,3113.7,3113.6,0.00271373]
[1644944711890,1.1743587,3113.7,3113.5,0.00014054]
[1644944712088,0.00221623,3113.8,3113.5,0.00014054]
[1644944712891,1.18362028,3113.9,3113.5,0.00014054]
[1644944713093,0.00224662,3113.8,3113.5,0.00014054]
[1644944713393,1.1858669,3113.8,3113.5,0.00014054]
[1644944713793,1.18362028,3113.7,3113.5,0.00014054]
[1644944713997,0.00224662,3113.8,3113.5,0.00014054]
[1644944714196,13.52684488,3115.1,3113.6,1.60566]
[1644944714197,1.18316136,3114.2,3113.6,1.60566]
[1644944714395,0.00284159,3114.3,3113.7,3.81716197]
[1644944714637,1.1860632,3114.3,3113.8,0.16540717]
[1644944714839,0.00284159,3114.3,3113.8,0.16540717]
[1644944715037,2.14047248,3114.3,3113.8,0.16540717]
[1644944715235,2.14162047,3114.3,3113.8,0.96807717]
[1644944715444,0.00398958,3114.3,3113.9,0.3]
[1644944715635,0.00398958,3114.6,3113.9,0.3]
[1644944715836,1.1823298,3114.5,3113.9,0.3]
[1644944716036,1.18631938,3114.4,3114.0,0.16513532]
[1644944716240,0.00683117,3114.7,3113.9,0.80272]
[1644944716436,0.00398958,3114.3,3113.9,1.75026863]
[1644944716637,1.04492189,3114.6,3114.0,1.10275]
[1644944716837,0.00258348,3114.4,3114.0,1.90547]
[1644944717235,1.1852159,3114.4,3114.0,1.10275]
[1644944717437,0.00398958,3114.3,3114.0,1.10275]
[1644944717836,0.00398958,3114.5,3114.0,1.10275]
[1644944718035,1.18404401,3114.4,3113.7,2.40839]
[1644944718236,0.00398958,3114.3,3113.8,0.3]
[1644944718685,0.00258348,3114.4,3113.8,0.3]
[1644944718892,1.18565083,3114.5,3113.8,0.3]
[1644944719090,1.1442272,3114.1,3113.8,0.3]
[1644944719588,0.00258357,3114.2,3113.7,1.60558]
[1644944720091,19.90239939,3114.4,3113.7,1.60558]
[1644944720092,1.18638897,3114.3,3113.7,1.60558]
[1644944720290,0.00226916,3114.1,3113.8,0.80284]
[1644944720892,0.00226916,3114.1,3113.9,0.46505481]
[1644944721087,0.00226916,3114.1,3114.0,0.16504011]
[1644944721289,0.00398958,3114.5,3114.0,0.16504011]
[1644944721490,0.00398958,3114.5,3114.0,0.80273]
[1644944721687,0.00226916,3114.2,3114.1,0.3]
[1644944722532,0.00398958,3114.3,3114.0,0.80273]
[1644944722734,0.00625874,3114.3,3114.0,0.80273]
[1644944723133,0.00625874,3114.3,3113.8,1.60545]
[1644944723333,0.00625874,3114.3,3113.9,0.3]
[1644944723734,0.00398958,3114.3,3113.9,0.3]
[1644944723935,0.00634235,3114.3,3113.9,0.3]
[1644944724934,0.00398958,3114.3,3113.9,0.3]
[1644944725135,0.00634235,3114.3,3113.9,0.3]
[1644944725737,0.00634235,3114.3,3114.1,0.00232534]
[1644944726188,0.80688958,3114.3,3114.1,0.00232534]
[1644944726389,20.36348829,3114.2,3114.1,0.00232534]
[1644944726590,27.20818829,3114.2,3114.1,0.00232534]
[1644944726791,30.82281461,3114.2,3114.1,0.00232534]
[1644944728188,31.42990893,3114.2,3114.1,0.00232534]
[1644944729644,30.82281461,3114.2,3114.1,0.00232534]
[1644944729843,30.82328431,3114.2,3114.1,0.00232534]
[1644944730444,19.52302,3114.0,3112.8,0.16520698]
[1644944730642,1.03488594,3113.2,3112.8,0.16520698]
[1644944731444,19.75488594,3113.2,3112.7,0.00225444]
[1644944731644,2.24397729,3113.1,3112.7,0.00225444]
[1644944732646,2.24397729,3113.1,3112.7,0.16635739]
[1644944732844,2.24404369,3113.1,3112.7,0.00225444]
[1644944733043,0.80323,3113.0,3112.7,0.00225444]
[1644944733245,0.462,3112.9,3112.7,0.00225444]
[1644944733686,0.00170955,3112.6,3112.3,0.16412294]